fUST/lending_fUST_20251207
["ID","MTS","AMOUNT","RATE_DAILY","PERIOD"]
[396531399,1765039713117,500.0,8.184e-05,2]
[396531400,1765039713216,500.0,8.184e-05,2]
[396531401,1765039713255,500.0,8.184e-05,2]
[396531402,1765039713307,500.0,8.184e-05,2]
[396531403,1765039713358,500.0,8.184e-05,2]
[396531404,1765039713432,500.0,8.184e-05,2]
[396531405,1765039713476,500.0,8.184e-05,2]
[396531406,1765039713524,193.53689115,8.184e-05,2]
[396531407,1765039713553,306.46310885,8.184e-05,2]
[396531408,1765039713589,500.0,8.184e-05,2]
[396531409,1765039713638,500.0,8.184e-05,2]
[396531410,1765039713676,500.0,8.184e-05,2]
[396531411,1765039713710,500.0,8.184e-05,2]
[396531412,1765039713745,500.0,8.184e-05,2]
[396531413,1765039713781,500.0,8.184e-05,2]
[396531414,1765039713816,263.94761531,8.184e-05,2]
[396531415,1765039713863,500.0,8.184e-05,2]
[396531416,1765039713912,500.0,8.184e-05,2]
[396531417,1765039713948,217.89143807,8.184e-05,2]
[396531418,1765039714001,500.0,8.184e-05,2]
[396531419,1765039714032,500.0,8.184e-05,2]
[396531420,1765039714078,500.0,8.184e-05,2]
[396531421,1765039714122,500.0,8.184e-05,2]
[396531422,1765039714166,500.0,8.184e-05,2]
[396531423,1765039714201,500.0,8.184e-05,2]
[396531424,1765039714265,500.0,8.184e-05,2]
[396531425,1765039714299,500.0,8.184e-05,2]
[396531426,1765039714340,500.0,8.184e-05,2]
[396531427,1765039714379,500.0,8.184e-05,2]
[396531428,1765039714417,211.70783777,8.184e-05,2]
[396531429,1765039714443,288.29216223,8.184e-05,2]
[396531430,1765039714479,500.0,8.184e-05,2]
[396531431,1765039714520,500.0,8.184e-05,2]
[396531432,1765039714562,500.0,8.184e-05,2]
[396531433,1765039714633,500.0,8.184e-05,2]
[396531434,1765039714670,500.0,8.184e-05,2]
[396531435,1765039714735,500.0,8.184e-05,2]
[396531436,1765039714781,500.0,8.184e-05,2]
[396531437,1765039714844,500.0,8.184e-05,2]
[396531438,1765039715063,500.0,8.184e-05,2]
[396531439,1765039719375,219.86778809,8.103e-05,2]
[396531440,1765039727767,4991.85004968,8.103e-05,2]
[396531441,1765039727790,118.73669053,8.103e-05,2]
[396531442,1765039731295,500.0,8.184e-05,2]
[396531443,1765039731332,-219.56314794,8.185e-05,2]
[396531444,1765039731376,500.0,8.184e-05,2]
[396531445,1765039731443,500.0,8.184e-05,2]
[396531446,1765039731504,500.0,8.184e-05,2]
[396531447,1765039731715,352.6728779,8.184e-05,2]
[396531448,1765039732841,-305.77711622,8.185e-05,2]
[396531449,1765039734798,319.27708931,8.184e-05,2]
[396531450,1765039734828,164.53804103,8.184e-05,2]
[396531464,1765039737529,-173.86943059,8.185e-05,2]
[396531465,1765039738954,2289.74850327,8.184e-05,2]
[396531466,1765039739081,2289.74850327,8.184e-05,2]
[396531467,1765039739170,2289.74850327,8.184e-05,2]
[396531468,1765039739215,175.53979142,8.184e-05,2]
[396531469,1765039739239,2114.20871185,8.184e-05,2]
[396531470,1765039739268,2289.74850327,8.184e-05,2]
[396531471,1765039739304,2289.74850327,8.184e-05,2]
[396531472,1765039739334,-151.36159493,8.185e-05,2]
[396531473,1765039739367,2289.74850327,8.184e-05,2]
[396531474,1765039739400,1016.55577834,8.184e-05,2]
[396531475,1765039739425,1273.19272493,8.184e-05,2]
[396531476,1765039739464,2289.74850327,8.184e-05,2]
[396531477,1765039739504,2289.74850327,8.184e-05,2]
[396531478,1765039739546,2289.74850327,8.184e-05,2]
[396531479,1765039739594,1857.57176526,8.184e-05,2]
[396531480,1765039739621,432.17673801,8.184e-05,2]
[396531481,1765039739655,2289.74850327,8.184e-05,2]
[396531482,1765039739688,2289.74850327,8.184e-05,2]
[396531483,1765039739724,2289.74850327,8.184e-05,2]
[396531484,1765039739760,2289.74850327,8.184e-05,2]
[396531485,1765039739804,408.83924891,8.184e-05,2]
[396531486,1765039739833,1880.90925436,8.184e-05,2]
[396531487,1765039739869,2289.74850327,8.184e-05,2]
[396531488,1765039739901,2289.74850327,8.184e-05,2]
[396531489,1765039739949,2289.74850327,8.184e-05,2]
[396531490,1765039739980,1249.85523583,8.184e-05,2]
[396531491,1765039740003,1039.89326744,8.184e-05,2]
[396531492,1765039740037,2289.74850327,8.184e-05,2]
[396531493,1765039740086,2289.74850327,8.184e-05,2]
[396531494,1765039740129,2289.74850327,8.184e-05,2]
[396531495,1765039740166,2090.87122275,8.184e-05,2]
[396531496,1765039740191,198.87728052,8.184e-05,2]
[396531497,1765039740234,2289.74850327,8.184e-05,2]
[396531498,1765039740270,2289.74850327,8.184e-05,2]
[396531499,1765039740468,2289.74850327,8.184e-05,2]
[396531500,1765039740501,2289.74850327,8.184e-05,2]
[396531501,1765039740533,642.1387064,8.184e-05,2]
[396531502,1765039740557,1647.60979687,8.184e-05,2]
[396531503,1765039740596,2289.74850327,8.184e-05,2]
[396531504,1765039740631,2289.74850327,8.184e-05,2]
[396531505,1765039740670,2289.74850327,8.184e-05,2]
[396531506,1765039740718,1483.15469332,8.184e-05,2]
[396531507,1765039740740,806.59380995,8.184e-05,2]
[396531508,1765039740780,2289.74850327,8.184e-05,2]
[396531509,1765039740817,2289.74850327,8.184e-05,2]
[396531510,1765039740852,2289.74850327,8.184e-05,2]
[396531511,1765039740882,2289.74850327,8.184e-05,2]
[396531512,1765039740913,34.42217697,8.184e-05,2]
[396531513,1765039740944,2255.3263263,8.184e-05,2]
[396531514,1765039740983,2289.74850327,8.184e-05,2]
[396531515,1765039741040,2289.74850327,8.184e-05,2]
[396531516,1765039741528,2289.74850327,8.184e-05,2]
[396531517,1765039741575,875.43816389,8.184e-05,2]
[396531518,1765039742273,250.0,0.00013109,3]
[396531519,1765039742400,-1414.31033938,8.184e-05,2]
[396531520,1765039742432,-2289.74850327,8.184e-05,2]
[396531521,1765039742464,-302.14381143,8.184e-05,2]
[396531522,1765039742678,-1987.60469184,8.184e-05,2]
[396531523,1765039742708,-2289.74850327,8.184e-05,2]
[396531524,1765039742967,-2289.74850327,8.184e-05,2]
[396531525,1765039742996,-2289.74850327,8.184e-05,2]
[396531526,1765039743222,-2289.74850327,8.184e-05,2]
[396531527,1765039743254,-2289.74850327,8.184e-05,2]
[396531528,1765039743800,-2289.74850327,8.184e-05,2]
[396531529,1765039743832,-2289.74850327,8.184e-05,2]
[396531530,1765039743995,-2289.74850327,8.184e-05,2]
[396531531,1765039744029,-2289.74850327,8.184e-05,2]
[396531532,1765039744290,-2289.74850327,8.184e-05,2]
[396531533,1765039744337,-2289.74850327,8.184e-05,2]
[396531534,1765039744545,-2289.74850327,8.184e-05,2]
[396531535,1765039744593,-2289.74850327,8.184e-05,2]
[396531536,1765039744673,-2289.74850327,8.184e-05,2]
[396531537,1765039744721,-2289.74850327,8.184e-05,2]
[396531538,1765039744826,-2289.74850327,8.184e-05,2]
[396531539,1765039744873,-2289.74850327,8.184e-05,2]
[396531540,1765039744970,-2289.74850327,8.184e-05,2]
[396531553,1765039748016,-429.1171305,8.185e-05,2]
[396531554,1765039748663,150.0,6.785e-05,2]
[396531558,1765039754864,229.81,6.6e-05,2]
[396531559,1765039755282,229.81,6.8e-05,2]
[396531560,1765039755603,229.81,6.9e-05,2]
[396531561,1765039759777,-229.81,7.1e-05,2]
[396531562,1765039763133,-150.0,7.108e-05,2]
[396531563,1765039763154,-229.81,7.2e-05,2]
[396531564,1765039763174,-229.81,7.4e-05,2]
[396531565,1765039763196,-150.0,7.431e-05,2]
[396531566,1765039763216,-229.81,7.5e-05,2]
[396531567,1765039763237,-229.81,7.7e-05,2]
[396531568,1765039763259,-150.0,7.754e-05,2]
[396531569,1765039763281,-192.18372493,7.8e-05,2]
[396531574,1765039779104,-37.62627507,7.8e-05,2]
[396531575,1765039780832,-281.21162481,7.9e-05,2]
[396531576,1765039780854,-229.81,8e-05,2]
[396531577,1765039780876,-40.52807434,8.077e-05,2]
[396531578,1765039783632,-109.47192566,8.077e-05,2]
[396531579,1765039783655,-59.33253825,8.1e-05,2]
[396531580,1765039785417,-170.47746175,8.1e-05,2]
[396531581,1765039785440,-41.25131752,8.103e-05,2]
[396531582,1765039795276,-589.75682422,8.103e-05,2]
[396531583,1765039801817,1827.09187394,8.103e-05,2]
[396531584,1765039805283,218.0,8.103e-05,2]
[396531585,1765039808408,-244.38669127,8.184e-05,2]
[396531586,1765039810798,-55.61330873,8.184e-05,2]
[396531587,1765039810826,-300.0,8.184e-05,2]
[396531588,1765039810854,-1200.0,8.184e-05,2]
[396531589,1765039811923,-524.48610328,8.185e-05,2]
[396531590,1765039812670,500.0,8.184e-05,2]
[396531591,1765039813442,-155.85666098,8.185e-05,2]
[396531592,1765039814255,150.0,6.766e-05,2]
[396531593,1765039814673,150.0,7.088e-05,2]
[396531594,1765039815233,150.0,7.411e-05,2]
[396531595,1765039815345,150.0,7.733e-05,2]
[396531596,1765039815748,150.0,8.055e-05,2]
[396531597,1765039816972,5638.78338254,8.103e-05,2]
[396531598,1765039816994,2385.80287255,8.103e-05,2]
[396531599,1765039817264,204.39,6.6e-05,2]
[396531600,1765039817316,-267.85726964,8.185e-05,2]
[396531601,1765039817609,204.39,6.8e-05,2]
[396531602,1765039817827,500.0,8.184e-05,2]
[396531603,1765039817885,500.0,8.184e-05,2]
[396531604,1765039817935,204.39,6.9e-05,2]
[396531605,1765039817964,438.53917967,8.184e-05,2]
[396531606,1765039818268,204.39,7.1e-05,2]
[396531607,1765039818545,204.39,7.2e-05,2]
[396531608,1765039818833,204.39,7.4e-05,2]
[396531609,1765039819122,204.39,7.5e-05,2]
[396531610,1765039819664,204.39,7.7e-05,2]
[396531611,1765039820645,204.39,7.8e-05,2]
[396531612,1765039820981,204.39,8e-05,2]
[396531613,1765039821257,204.39,8.1e-05,2]
[396531633,1765039831921,-1078.28924495,8.185e-05,2]
[396531634,1765039831933,-494.2446,8.185e-05,2]
[396531636,1765039836683,-327.87969433,8.185e-05,2]
[396531639,1765039837767,-336.25087425,8.185e-05,2]
[396531650,1765039839554,-196498.12679897,8.185e-05,2]
[396531654,1765039839985,303.77,8.103e-05,2]
[396531656,1765039841159,-3e-08,8.185e-05,2]
[396531657,1765039841178,-33627.08226896,8.185e-05,2]
[396531879,1765039850907,500.0,8.184e-05,2]
[396531880,1765039851228,500.0,8.184e-05,2]
[396531882,1765039851596,500.0,8.184e-05,2]
[396531883,1765039851864,500.0,8.184e-05,2]
[396531887,1765039856357,2833.39929152,8.184e-05,2]
[396531888,1765039856391,2833.39929152,8.184e-05,2]
[396531889,1765039856427,2029.44141696,8.184e-05,2]
[396531890,1765039856453,803.95787456,8.184e-05,2]
[396531891,1765039856489,2833.39929152,8.184e-05,2]
[396531892,1765039856534,2833.39929152,8.184e-05,2]
[396531893,1765039856564,2833.39929152,8.184e-05,2]
[396531894,1765039856600,695.85425088,8.184e-05,2]
[396531895,1765039856625,2137.54504064,8.184e-05,2]
[396531896,1765039856655,2833.39929152,8.184e-05,2]
[396531897,1765039856692,2833.39929152,8.184e-05,2]
[396531898,1765039856722,2195.66637632,8.184e-05,2]
[396531899,1765039856746,637.7329152,8.184e-05,2]
[396531900,1765039856782,2833.39929152,8.184e-05,2]
[396531901,1765039856834,2833.39929152,8.184e-05,2]
[396531902,1765039856879,2833.39929152,8.184e-05,2]
[396531903,1765039856910,862.07921024,8.184e-05,2]
[396531904,1765039856936,1971.32008128,8.184e-05,2]
[396531905,1765039856968,2833.39929152,8.184e-05,2]
[396531906,1765039857020,2833.39929152,8.184e-05,2]
[396531907,1765039857140,2361.89133568,8.184e-05,2]
[396531908,1765039857167,471.50795584,8.184e-05,2]
[396531909,1765039857245,2833.39929152,8.184e-05,2]
[396531910,1765039857280,2833.39929152,8.184e-05,2]
[396531911,1765039857329,2833.39929152,8.184e-05,2]
[396531912,1765039857450,1028.3041696,8.184e-05,2]
[396531913,1765039857475,1805.09512192,8.184e-05,2]
[396531914,1765039857528,2833.39929152,8.184e-05,2]
[396531915,1765039857570,2833.39929152,8.184e-05,2]
[396531916,1765039857601,2528.11629504,8.184e-05,2]
[396531917,1765039857626,305.28299648,8.184e-05,2]
[396531918,1765039857693,2833.39929152,8.184e-05,2]
[396531919,1765039857926,2833.39929152,8.184e-05,2]
[396531920,1765039857972,2833.39929152,8.184e-05,2]
[396531921,1765039858001,1194.52912896,8.184e-05,2]
[396531922,1765039858024,1638.87016256,8.184e-05,2]
[396531923,1765039858085,2833.39929152,8.184e-05,2]
[396531924,1765039858114,2833.39929152,8.184e-05,2]
[396531925,1765039858148,2694.3412544,8.184e-05,2]
[396531926,1765039858175,139.05803712,8.184e-05,2]
[396531927,1765039858214,2833.39929152,8.184e-05,2]
[396531928,1765039858250,2833.39929152,8.184e-05,2]
[396531929,1765039858316,2833.39929152,8.184e-05,2]
[396531930,1765039858348,1360.75408832,8.184e-05,2]
[396531931,1765039865588,-300.0,8.183e-05,2]
[396531932,1765039869168,150.0,8.101e-05,2]
[396531933,1765039875795,172.12,6.6e-05,2]
[396531934,1765039876149,172.12,6.8e-05,2]
[396531935,1765039876511,172.12,6.9e-05,2]
[396531936,1765039876796,172.12,7.1e-05,2]
[396531937,1765039876948,2910.10524173,8.102e-05,2]
[396531938,1765039877149,172.12,7.2e-05,2]
[396531939,1765039877456,172.12,7.4e-05,2]
[396531940,1765039877745,172.12,7.5e-05,2]
[396531941,1765039878037,172.12,7.7e-05,2]
[396531942,1765039878320,172.12,7.8e-05,2]
[396531943,1765039878599,172.12,8e-05,2]
[396531944,1765039879621,172.12,8.1e-05,2]
[396531945,1765039884022,150.0,6.7e-05,2]
[396531946,1765039884421,150.0,7.019e-05,2]
[396531947,1765039884812,150.0,7.338e-05,2]
[396531948,1765039885210,150.0,7.657e-05,2]
[396531949,1765039885618,151.52,7.976e-05,2]
[396531950,1765039886169,3300.0,8.102e-05,2]
[396531951,1765039894473,3864.0,8.102e-05,2]
[396531955,1765039922713,300.0,8.183e-05,2]
[396531960,1765039936210,292.68805114,0.0001311,3]
[396531965,1765039940802,150.5,6.6e-05,2]
[396531966,1765039941047,150.5,6.8e-05,2]
[396531967,1765039941353,150.5,6.9e-05,2]
[396531968,1765039941815,150.5,7.1e-05,2]
[396531969,1765039942117,150.5,7.2e-05,2]
[396531970,1765039942397,150.5,7.4e-05,2]
[396531971,1765039942662,150.5,7.5e-05,2]
[396531972,1765039942934,150.5,7.7e-05,2]
[396531974,1765039943907,150.5,7.8e-05,2]
[396531975,1765039944074,150.5,8e-05,2]
[396531981,1765039953246,279.49,8.183e-05,2]
[396531982,1765039953272,220.51,8.183e-05,2]
[396531983,1765039953301,500.0,8.183e-05,2]
[396531984,1765039953337,235.60170719,8.183e-05,2]
[396531985,1765039953376,500.0,8.183e-05,2]
[396531986,1765039953422,500.0,8.183e-05,2]
[396531987,1765039953456,1002.17343378,8.183e-05,2]
[396531988,1765039953502,500.0,8.183e-05,2]
[396531989,1765039953532,500.0,8.183e-05,2]
[396531990,1765039953566,500.0,8.183e-05,2]
[396531991,1765039953604,1002.17343378,8.183e-05,2]
[396531992,1765039953660,1002.17343378,8.183e-05,2]
[396531993,1765039953699,190.95732434,8.183e-05,2]
[396531994,1765039953730,224.41207098,8.183e-05,2]
[396531995,1765039953782,1002.17343378,8.183e-05,2]
[396531996,1765039953843,1002.17343378,8.183e-05,2]
[396531998,1765039954355,1002.17343378,8.183e-05,2]
[396531999,1765039954410,115.48829481,8.183e-05,2]
[396532000,1765039954433,886.68513897,8.183e-05,2]
[396532001,1765039954495,1002.17343378,8.183e-05,2]
[396532002,1765039954762,1002.17343378,8.183e-05,2]
[396532003,1765039954814,1002.17343378,8.183e-05,2]
[396532004,1765039954870,1002.17343378,8.183e-05,2]
[396532005,1765039954910,1002.17343378,8.183e-05,2]
[396532006,1765039954974,1002.17343378,8.183e-05,2]
[396532007,1765039955023,1002.17343378,8.183e-05,2]
[396532008,1765039955107,1002.17343378,8.183e-05,2]
[396532009,1765039955178,1002.17343378,8.183e-05,2]
[396532010,1765039955224,93.76395701,8.183e-05,2]
[396532011,1765039955249,908.40947677,8.183e-05,2]
[396532012,1765039955289,1002.17343378,8.183e-05,2]
[396532014,1765039955325,1002.17343378,8.183e-05,2]
[396532015,1765039955363,1002.17343378,8.183e-05,2]
[396532016,1765039955398,1002.17343378,8.183e-05,2]
[396532017,1765039955429,1002.17343378,8.183e-05,2]
[396532018,1765039955460,1002.17343378,8.183e-05,2]
[396532019,1765039955490,1002.17343378,8.183e-05,2]
[396532020,1765039955520,1002.17343378,8.183e-05,2]
[396532021,1765039955554,1002.17343378,8.183e-05,2]
[396532022,1765039955601,72.03961921,8.183e-05,2]
[396532023,1765039955623,930.13381457,8.183e-05,2]
[396532024,1765039955691,1002.17343378,8.183e-05,2]
[396532025,1765039955780,1002.17343378,8.183e-05,2]
[396532026,1765039955823,1002.17343378,8.183e-05,2]
[396532027,1765039955924,1002.17343378,8.183e-05,2]
[396532028,1765039955963,1002.17343378,8.183e-05,2]
[396532029,1765039955993,1002.17343378,8.183e-05,2]
[396532030,1765039956032,1002.17343378,8.183e-05,2]
[396532031,1765039956062,1002.17343378,8.183e-05,2]
[396532032,1765039956091,1002.17343378,8.183e-05,2]
[396532033,1765039956174,50.31528141,8.183e-05,2]
[396532034,1765039956200,951.85815237,8.183e-05,2]
[396532035,1765039956237,1002.17343378,8.183e-05,2]
[396532036,1765039956275,1002.17343378,8.183e-05,2]
[396532037,1765039956322,1002.17343378,8.183e-05,2]
[396532038,1765039956357,1002.17343378,8.183e-05,2]
[396532039,1765039956401,1002.17343378,8.183e-05,2]
[396532040,1765039956434,1002.17343378,8.183e-05,2]
[396532041,1765039956467,1002.17343378,8.183e-05,2]
[396532042,1765039956502,1002.17343378,8.183e-05,2]
[396532043,1765039956543,1002.17343378,8.183e-05,2]
[396532044,1765039956574,28.59094361,6.695e-05,2]
[396532045,1765039956598,121.40905639,6.695e-05,2]
[396532046,1765039956634,1002.17343378,8.183e-05,2]
[396532047,1765039956676,1002.17343378,8.183e-05,2]
[396532048,1765039956707,1002.17343378,8.183e-05,2]
[396532049,1765039956748,1002.17343378,8.183e-05,2]
[396532050,1765039956780,1002.17343378,8.183e-05,2]
[396532051,1765039956832,1002.17343378,8.183e-05,2]
[396532052,1765039956875,1002.17343378,8.183e-05,2]
[396532053,1765039956906,150.0,7.014e-05,2]
[396532054,1765039956937,1002.17343378,8.183e-05,2]
[396532056,1765039957221,150.0,7.333e-05,2]
[396532057,1765039957325,150.0,7.652e-05,2]
[396532058,1765039957404,150.0,7.971e-05,2]
[396532059,1765039958398,150.41,6.612e-05,2]
[396532062,1765039959905,1110.80347337,8.103e-05,2]
[396532063,1765039959927,389.19652663,8.103e-05,2]
[396532069,1765039965104,500.0,8.183e-05,2]
[396532070,1765039965136,1758.1524059,8.183e-05,2]
[396532071,1765039965180,500.0,8.183e-05,2]
[396532072,1765039965217,1758.1524059,8.183e-05,2]
[396532073,1765039965259,500.0,8.183e-05,2]
[396532074,1765039965305,500.0,8.183e-05,2]
[396532075,1765039965340,500.0,8.183e-05,2]
[396532076,1765039965379,500.0,8.183e-05,2]
[396532077,1765039965420,500.0,8.183e-05,2]
[396532078,1765039965455,500.0,8.183e-05,2]
[396532079,1765039965494,578.48144574,8.183e-05,2]
[396532080,1765039965532,500.0,8.183e-05,2]
[396532081,1765039965601,500.0,8.183e-05,2]
[396532082,1765039965704,500.0,8.183e-05,2]
[396532083,1765039965744,405.22374246,8.183e-05,2]
[396532084,1765039965767,94.77625754,8.183e-05,2]
[396532085,1765039965813,500.0,8.183e-05,2]
[396532086,1765039965859,1758.1524059,8.183e-05,2]
[396532087,1765039965918,500.0,8.183e-05,2]
[396532089,1765039965964,500.0,8.183e-05,2]
[396532090,1765039965996,1758.1524059,8.183e-05,2]
[396532091,1765039966025,500.0,8.183e-05,2]
[396532092,1765039966055,1758.1524059,8.183e-05,2]
[396532093,1765039966085,500.0,8.183e-05,2]
[396532094,1765039966116,1758.1524059,8.183e-05,2]
[396532095,1765039966151,372.62411886,8.183e-05,2]
[396532096,1765039966175,127.37588114,8.183e-05,2]
[396532097,1765039966207,1758.1524059,8.183e-05,2]
[396532098,1765039966237,500.0,8.183e-05,2]
[396532099,1765039966281,1758.1524059,8.183e-05,2]
[396532100,1765039966320,500.0,8.183e-05,2]
[396532101,1765039966352,1758.1524059,8.183e-05,2]
[396532102,1765039966391,500.0,8.183e-05,2]
[396532103,1765039966430,1758.1524059,8.183e-05,2]
[396532104,1765039966460,500.0,8.183e-05,2]
[396532105,1765039966494,840.02449526,8.183e-05,2]
[396532106,1765039966521,918.12791064,8.183e-05,2]
[396532107,1765039966559,1758.1524059,8.183e-05,2]
[396532108,1765039966592,1758.1524059,8.183e-05,2]
[396532109,1765039966625,1758.1524059,8.183e-05,2]
[396532110,1765039966665,1758.1524059,8.183e-05,2]
[396532111,1765039966697,1758.1524059,8.183e-05,2]
[396532112,1765039966736,291.12005986,8.183e-05,2]
[396532113,1765039966763,1467.03234604,8.183e-05,2]
[396532114,1765039966795,1758.1524059,8.183e-05,2]
[396532115,1765039967098,1758.1524059,8.183e-05,2]
[396532116,1765039967137,1758.1524059,8.183e-05,2]
[396532117,1765039967194,1758.1524059,8.183e-05,2]
[396532118,1765039967397,1500.36803036,8.183e-05,2]
[396532119,1765039967425,257.78437554,8.183e-05,2]
[396532120,1765039967463,1758.1524059,8.183e-05,2]
[396532121,1765039967497,1758.1524059,8.183e-05,2]
[396532122,1765039967531,1758.1524059,8.183e-05,2]
[396532123,1765039967564,1758.1524059,8.183e-05,2]
[396532124,1765039967605,1758.1524059,8.183e-05,2]
[396532125,1765039967643,951.46359496,8.183e-05,2]
[396532126,1765039967668,806.68881094,8.183e-05,2]
[396532127,1765039967704,1758.1524059,8.183e-05,2]
[396532128,1765039967741,1758.1524059,8.183e-05,2]
[396532129,1765039967779,1758.1524059,8.183e-05,2]
[396532130,1765039967811,1758.1524059,8.183e-05,2]
[396532131,1765039967844,1758.1524059,8.183e-05,2]
[396532132,1765039967876,402.55915956,8.183e-05,2]
[396532133,1765039967902,1355.59324634,8.183e-05,2]
[396532134,1765039967938,1758.1524059,8.183e-05,2]
[396532135,1765039968053,224.91,8.101e-05,2]
[396532139,1765039975848,6661.35434776,8.103e-05,2]
[396532140,1765039975870,6559.10232695,8.103e-05,2]
[396532143,1765039982390,300.0,8.184e-05,2]
[396532145,1765039984158,3140.90767305,8.103e-05,2]
[396532146,1765039984180,7366.77950637,8.103e-05,2]
[396532147,1765039984818,500.0,8.183e-05,2]
[396532150,1765039990204,500.0,8.183e-05,2]
[396532152,1765039992714,989.79837811,8.103e-05,2]
[396532159,1765040000445,159.36,6.6e-05,2]
[396532160,1765040000511,230.24625868,8.103e-05,2]
[396532161,1765040000775,159.36,6.8e-05,2]
[396532162,1765040001054,94.46585684,6.9e-05,2]
[396532163,1765040001077,64.89414316,6.9e-05,2]
[396532164,1765040001383,159.36,7.1e-05,2]
[396532165,1765040001770,159.36,7.2e-05,2]
[396532167,1765040002105,159.36,7.4e-05,2]
[396532168,1765040002479,159.36,7.5e-05,2]
[396532169,1765040002806,159.36,7.7e-05,2]
[396532170,1765040003079,159.36,7.8e-05,2]
[396532171,1765040003406,159.36,8e-05,2]
[396532172,1765040003693,159.36,8.1e-05,2]
[396532174,1765040005728,500.0,8.183e-05,2]
[396532175,1765040006409,500.0,8.183e-05,2]
[396532177,1765040008472,460.49251736,8.103e-05,2]
[396532184,1765040016231,230.24625868,8.103e-05,2]
[396532188,1765040024219,230.24625868,8.103e-05,2]
[396532190,1765040026171,150.0,6.742e-05,2]
[396532191,1765040026572,150.0,7.063e-05,2]
[396532193,1765040026970,150.0,7.384e-05,2]
[396532194,1765040027525,177.32,7.705e-05,2]
[396532195,1765040028029,221.65,8.026e-05,2]
[396532199,1765040032159,230.24625868,8.103e-05,2]
[396532203,1765040040281,230.24625868,8.103e-05,2]
[396532207,1765040042422,300.0,8.184e-05,2]
[396532209,1765040042825,300.0,8.184e-05,2]
[396532214,1765040048498,230.24625868,8.103e-05,2]
[396532219,1765040056580,230.24625868,8.103e-05,2]
[396532220,1765040056879,150.52,6.6e-05,2]
[396532221,1765040057213,150.52,6.8e-05,2]
[396532223,1765040057594,150.52,6.9e-05,2]
[396532224,1765040057878,150.52,7.1e-05,2]
[396532225,1765040058187,150.52,7.2e-05,2]
[396532226,1765040058462,150.52,7.4e-05,2]
[396532228,1765040058778,150.52,7.5e-05,2]
[396532229,1765040059109,150.52,7.7e-05,2]
[396532230,1765040059884,150.52,7.8e-05,2]
[396532231,1765040060202,150.52,8e-05,2]
[396532234,1765040064359,500.0,8.183e-05,2]
[396532235,1765040064411,342.05349397,8.183e-05,2]
[396532241,1765040071698,230.24625868,8.103e-05,2]
[396532242,1765040074278,150.48,6.612e-05,2]
[396532243,1765040081334,1641.31603475,8.183e-05,2]
[396532244,1765040081359,873.88790909,8.183e-05,2]
[396532245,1765040081391,2515.20394384,8.183e-05,2]
[396532246,1765040081436,2515.20394384,8.183e-05,2]
[396532247,1765040081471,2515.20394384,8.183e-05,2]
[396532248,1765040081506,1580.51025939,8.183e-05,2]
[396532249,1765040081530,934.69368445,8.183e-05,2]
[396532250,1765040081564,2515.20394384,8.183e-05,2]
[396532251,1765040081599,2515.20394384,8.183e-05,2]
[396532252,1765040081650,2515.20394384,8.183e-05,2]
[396532253,1765040081734,1519.70448403,8.183e-05,2]
[396532254,1765040081758,995.49945981,8.183e-05,2]
[396532255,1765040081812,2515.20394384,8.183e-05,2]
[396532256,1765040081861,2515.20394384,8.183e-05,2]
[396532257,1765040081944,2515.20394384,8.183e-05,2]
[396532258,1765040082018,1458.89870867,8.183e-05,2]
[396532259,1765040082042,1056.30523517,8.183e-05,2]
[396532260,1765040082084,2515.20394384,8.183e-05,2]
[396532261,1765040082126,2515.20394384,8.183e-05,2]
[396532262,1765040082156,2515.20394384,8.183e-05,2]
[396532263,1765040082188,1398.09293331,8.183e-05,2]
[396532264,1765040082213,1117.11101053,8.183e-05,2]
[396532265,1765040082249,2515.20394384,8.183e-05,2]
[396532266,1765040082278,2515.20394384,8.183e-05,2]
[396532267,1765040082318,2515.20394384,8.183e-05,2]
[396532268,1765040082358,1337.28715795,8.183e-05,2]
[396532269,1765040082384,1177.91678589,8.183e-05,2]
[396532270,1765040082414,2515.20394384,8.183e-05,2]
[396532271,1765040082449,2515.20394384,8.183e-05,2]
[396532272,1765040082488,2515.20394384,8.183e-05,2]
[396532273,1765040082525,1276.48138259,8.183e-05,2]
[396532274,1765040082550,1238.72256125,8.183e-05,2]
[396532275,1765040082587,2515.20394384,8.183e-05,2]